Cogmind - Beta 16 @@@ ROGUE MODE // 2025.10.28 @ 18:43:21 Player: Not_Jesus8 Result: Self-destructed Performance ------------- Evolutions (3) 1500 Regions Visited (7) 1400 Robots Destroyed (61) 305 Value Destroyed (1712) 1712 Prototype IDs (1) 20 Alien Tech Used (0) 0 Bonus (56) 56 TOTAL SCORE: 4993 Bonus ------- Follower Combat Kills 56 Cogmind --------- Core Integrity 322/700 Matter 300/300 Energy 100/100 System Corruption 10% Temperature Cool (0) Movement Core (200) Ox3 Location -7/Lower Caves Parts ------- > --- POWER (1) -------- (None) > --- PROPULSION (4) --- (None) > --- UTILITY (4) ------ Structural Scanner Improved Melee Analysis Suite Hardened Medium Armor Plating System Shield > --- WEAPON (4) ------- Axe > --- INVENTORY (5) ---- Large Matter Pod (83) Advanced Weight Redist. System Improved Signal Interpreter Light Armor Plating System Shield Peak State ------------ > --- POWER ------------ Light Ion Engine > --- PROPULSION ------- Aluminum Leg Aluminum Leg Carbon-fiber Leg Enhanced Flexi-carbon Leg > --- UTILITY ---------- Medium Storage Unit Light Armor Plating Hacking Suite > --- WEAPON ----------- High-powered Shotgun High-powered Shotgun High-powered Shotgun Axe > --- INVENTORY -------- Aluminum Leg Large Matter Pod Improved Sensor Array Improved Signal Interpreter Melee Analysis Suite Light Armor Plating Hacking Suite System Shield High-powered Shotgun Heavy Mace [Rating: 32] Favorites ----------- Power Light Ion Engine Engine Light Ion Engine Power Core Light Nuclear Core Propulsion Aluminum Leg Treads Light Treads Leg Aluminum Leg Wheel Wheel Utility Medium Storage Unit Device Structural Scanner Storage Medium Storage Unit Processor Improved Melee Analysis Suite Hackware System Shield Protection Light Armor Plating Weapon High-powered Shotgun Energy Gun Beam Rifle Ballistic Gun High-powered Shotgun Launcher Grenade Launcher Slashing Weapon Axe Build | -11 -10 -9 -8 -7 -7 -7 -7 ------- Run | Yrd Mat Mat Mat Fac Was Fac Low Slots Evolved 6 | . . 2 2 2 . . . Power . | . . . . . . . . Propulsion 2 | . . . 1 1 . . . Utility 2 | . . 1 . 1 . . . Weapon 2 | . . 1 1 . . . . Parts Attached 56 | 7 12 9 11 2 1 10 4 Power 6 | 1 2 1 1 . . 1 . Engine 5 | 1 1 1 1 . . 1 . Core 1 | . 1 . . . . . . Reactor . | . . . . . . . . Propulsion 19 | 2 5 2 4 . 1 4 1 Treads 2 | 2 . . . . . . . Leg 12 | . 5 2 4 . 1 . . Wheel 5 | . . . . . . 4 1 Hover . | . . . . . . . . Flight . | . . . . . . . . Utility 16 | 2 2 2 2 1 . 5 2 Device 3 | 1 1 . . . . 1 . Storage 3 | 1 1 1 . . . . . Processor 4 | . . . 1 . . 2 1 Hackware 3 | . . . . 1 . 2 . Protection 3 | . . 1 1 . . . 1 Artifact . | . . . . . . . . Weapon 15 | 2 3 4 4 1 . . 1 Energy Gun 1 | . . 1 . . . . . Energy Cannon . | . . . . . . . . Ballistic Gun 11 | 2 2 3 4 . . . . Ballistic Cannon . | . . . . . . . . Launcher 1 | . 1 . . . . . . Special Weapon . | . . . . . . . . Impact Weapon . | . . . . . . . . Slashing Weapon 2 | . . . . 1 . . 1 Piercing Weapon . | . . . . . . . . Special Melee Weapon . | . . . . . . . . Unidentified Prototypes 1 | . . . . . 1 . . Parts Lost 18 | . 6 1 . . 3 3 5 Power 2 | . 1 . . . . 1 . Propulsion 9 | . 3 . . . 1 1 4 Utility 3 | . 1 . . . 1 1 . Weapon 4 | . 1 1 . . 1 . 1 Highest Loss Streak 3 | . 3 1 . . 3 1 3 To Critical Strikes . | . . . . . . . . Average Backups 6 | . 4 7 8 9 6 4 5 Power . | . . . . . . . . Propulsion . | . . 2 1 1 . . . Utility 4 | . 2 3 5 6 5 4 5 Weapon . | . 1 1 1 2 1 . . Tool/Special . | . . . . . . . . Unused Backups 13 | . 1 3 . 1 4 . 4 Power 1 | . . 1 . . . . . Propulsion 1 | . . 1 . . . . . Utility 10 | . 1 1 . 1 3 . 4 Weapon 1 | . . . . . 1 . . Tool/Special . | . . . . . . . . Average Slot Usage (%) 75 | . 95 71 89 84 24 54 70 Engine 5 | . 9 . 8 7 2 6 . Treads 3 | . 15 . . . . . . Leg 12 | . 9 22 26 23 5 . . Wheel 8 | . . . . . . 25 26 Device 5 | . 12 . . . . 6 7 Storage 7 | . 14 11 9 7 2 . . Processor 1 | . . . . 6 . 2 7 Hackware 1 | . . . . . 2 4 7 Protection 4 | . . 7 8 7 2 . 6 Ballistic Gun 19 | . 27 28 35 24 6 . . Slashing Weapon 3 | . . . . 5 2 6 12 Peak Build Rating 32 | 7 9 11 23 26 32 19 23 Average Rating 12 | 5 7 8 19 22 7 12 21 On Entrance 11 | . 7 5 11 22 25 1 17 Avg Prop Armor Cover (%) . | . . . . . . . . Naked Turns 119 | . . . . . 86 33 . Heaviest Build 28 | 14 21 23 28 28 28 7 15 Greatest Support 46 | 40 40 20 35 35 35 40 46 Greatest Overweight (x) 5 | . 5 1 . . . . . Average Overweight (x) . | . . . . . . . . Largest Inventory Capacity 10 | 8 10 10 10 10 10 5 5 Average Capacity 8 | 7 9 10 10 10 6 5 5 Most Carried 10 | 2 7 10 10 10 10 5 5 Average Carried 6 | . 4 7 8 9 6 4 5 Final Capacity 10 | 8 10 10 10 10 5 5 5 Final Carried 10 | 2 7 10 9 10 5 5 5 Class Distribution -------------------- 37% | Scavenger-Mutant 21% | Mutant 19% | Scavenger-Tank 12% | Scavenger-Gunner 8% | Scavenger-Gladiator Dominant Class ---------------- Mutant | -10/Materials Scavenger-Tank | -9/Materials Scavenger-Tank | -8/Materials Scavenger-Gunner | -7/Factory Mutant | -7/Waste Scavenger-Mutant | -7/Factory Scavenger-Gladiator | -7/Lower Caves Resources | -11 -10 -9 -8 -7 -7 -7 -7 ----------- Run | Yrd Mat Mat Mat Fac Was Fac Low Matter Collected 1907 | 302 451 348 350 8 . 197 251 Remotely . | . . . . . . . . Salvage Created 2130 | 170 708 534 364 136 . 110 108 Parts 149 | 16 51 42 19 6 . 11 4 Haulers Intercepted 3 | . 1 2 . . . . . Recyclers Shooed 2 | . . . 2 . . . . Parts Field Recycled . | . . . . . . . . Retrieved Matter . | . . . . . . . . Parts Self-Destructed 4 | . . . . . . . 4 Prevented . | . . . . . . . . Parts Restored . | . . . . . . . . Kills | -11 -10 -9 -8 -7 -7 -7 -7 ------- Run | Yrd Mat Mat Mat Fac Was Fac Low Combat Hostiles Destroyed 41 | . 20 8 6 4 . 1 2 Melee 3 | . . . . . . 1 2 Guns 34 | . 20 5 6 3 . . . AOE 4 | . . 3 . 1 . . . Classes Destroyed 13 | 3 3 3 1 1 . 2 . Worker 7 | 2 . 3 1 . . 1 . Builder 1 | . . . . . . 1 . Tunneler 3 | 3 . . . . . . . Hauler 3 | . 1 2 . . . . . Recycler 3 | 1 . . 2 . . . . Mechanic 1 | . . 1 . . . . . Operator 1 | . . . . . . 1 . Watcher 1 | . . 1 . . . . . Swarmer 6 | . 6 . . . . . . Grunt 27 | . 14 3 4 3 . 1 2 Sentry 6 | . . 5 1 . . . . Hunter 1 | . . . 1 . . . . Programmer 1 | . . . . 1 . . . Best Kill Streak 6 | 6 5 4 4 3 . 2 1 Combat Bots Only 5 | . 5 3 3 3 . 1 1 Max Kills in Single Turn 3 | 1 1 3 2 1 . 1 1 Gunslinging . | . . . . . . . . Exploded 3 | . . 3 . 1 . . . Melee 1 | . . . . . . 1 1 Uniques/NPCs Destroyed . | . . . . . . . . Combat | -11 -10 -9 -8 -7 -7 -7 -7 -------- Run | Yrd Mat Mat Mat Fac Was Fac Low Hostile Shots Fired 251 | . 139 34 20 9 4 26 19 Missed 69 | . 39 8 4 3 . 9 6 Hits 182 | . 100 26 16 6 4 17 13 Melee 4 | . . . . . 4 . . Projectile 178 | . 100 26 16 6 . 17 13 Critical Strikes 9 | . 1 . 1 . 2 2 3 Damage Taken 3058 | . 1072 383 258 388 191 262 504 Core 730 | . 217 102 33 106 95 61 116 Absorbed by Shields . | . . . . . . . . Regen/Repaired (Parts) 77 | . . . 77 . . . . Core Remaining (%) 70 | 100 13 74 94 . . . . Volleys Fired 161 | 8 82 43 15 7 6 . . Largest 4 | 2 2 3 4 4 3 . . Hottest 100 | 40 40 99 100 100 75 . . Shots Fired 374 | 16 152 108 56 27 15 . . Gun 371 | 16 151 106 56 27 15 . . Cannon . | . . . . . . . . Launcher 3 | . 1 2 . . . . . Special . | . . . . . . . . Kinetic 369 | 16 151 104 56 27 15 . . Thermal 2 | . . 2 . . . . . Explosive 3 | . 1 2 . . . . . Electromagnetic . | . . . . . . . . Robot Hit Streak 17 | 6 12 17 6 3 9 . . Robot Miss Streak 10 | 1 9 3 7 10 2 . . Penetration Max . | . . . . . . . . Secondary Targets 2 | . 1 . 1 . . . . Max Gunslinging Chain 1 | . 1 . 1 . . . . Shots Hit Robots 265 | 10 98 77 36 14 13 8 9 Core Hits 120 | 9 45 34 17 8 2 2 3 Critical Kills 1 | . . . 1 . . . . Critical Parts Destroyed 2 | . 1 1 . . . . . Critical Strikes 5 | . 1 1 1 . . 2 . Destroy 3 | . 1 1 1 . . . . Sever 2 | . . . . . . 2 . Melee Attacks 28 | . . . . 2 . 12 14 Impact . | . . . . . . . . Slashing 28 | . . . . 2 . 12 14 Piercing . | . . . . . . . . Sneak Attacks 4 | . . . . . . 4 . Combat Hostiles 1 | . . . . . . 1 . Follow-up Attacks . | . . . . . . . . Damage Inflicted 4055 | 98 981 941 569 372 338 427 329 Guns 3002 | 98 981 791 569 225 338 . . Cannons . | . . . . . . . . Explosions 297 | . . 150 . 147 . . . Melee 756 | . . . . . . 427 329 Ramming . | . . . . . . . . Kinetic 2988 | 98 981 777 569 225 338 . . Thermal 14 | . . 14 . . . . . Explosive 297 | . . 150 . 147 . . . Electromagnetic . | . . . . . . . . Impact . | . . . . . . . . Slashing 756 | . . . . . . 427 329 Piercing . | . . . . . . . . Highest Corruption 10 | . . . . . . . 10 Average Corruption 10 | . . . . . . . 10 Corruption Purged . | . . . . . . . . Corruption Blocked . | . . . . . . . . Effects 2 | . . . . . . . 2 Message Errors 1 | . . . . . . . 1 Alerts 1 | . . . . . . . 1 Overload Shots . | . . . . . . . . Overflow Damage 130 | . . . . 28 . 94 8 Projectiles . | . . . . . . . . Explosions 28 | . . . . 28 . . . Melee 102 | . . . . . . 94 8 Knockbacks . | . . . . . . . . Impact . | . . . . . . . . Kinetic . | . . . . . . . . Secondary . | . . . . . . . . Self-Inflicted Damage 250 | . . . . 250 . . . Shots 3 | . . . . 3 . . . Rammed . | . . . . . . . . Targets Rammed . | . . . . . . . . Kicked . | . . . . . . . . Crushed . | . . . . . . . . Highest Temperature 165 | . 24 24 165 110 . 9 . Average Temperature 25 | . 7 5 65 54 . 9 . Received Heat Transfer 1071 | . 444 114 117 54 . 171 171 Siege Activations . | . . . . . . . . Martial Activations . | . . . . . . . . Shielding Activations . | . . . . . . . . Robots Disrupted . | . . . . . . . . Combat Hostiles . | . . . . . . . . Robots Corrupted . | . . . . . . . . Combat Hostiles . | . . . . . . . . Parts Fried . | . . . . . . . . Impact Corruptions . | . . . . . . . . Robots Melted . | . . . . . . . . Combat Hostiles . | . . . . . . . . Parts Melted . | . . . . . . . . Heat Transferred 37 | . . 37 . . . . . Parts Sabotaged . | . . . . . . . . Parts Stolen . | . . . . . . . . Parts Stripped . | . . . . . . . . Power Chain Reactions . | . . . . . . . . Alert | -11 -10 -9 -8 -7 -7 -7 -7 ------- Run | Yrd Mat Mat Mat Fac Was Fac Low Maximum Alert Level 1 | . 1 . . 1 . . . Low Security (%) 93 | 100 78 100 100 90 100 100 . Level 1 6 | . 21 . . 10 . . . Level 2 . | . . . . . . . . Level 3 . | . . . . . . . . Level 4 . | . . . . . . . . Level 5 . | . . . . . . . . High Security . | . . . . . . . . Max Security . | . . . . . . . . Peak Influence 236 | 10 236 119 156 211 66 90 . Initial 87 | . 6 87 34 52 66 . . Average 62 | 2 103 68 87 66 21 5 . Influence Increases 1765 | 30 590 283 344 260 . 188 70 Destroy 0b10 Robot/C 900 | . 400 160 200 80 . 20 40 Destroy 0b10 Robot/NC 100 | 30 5 35 15 . . 15 . Destroy Leader 218 | . 82 66 50 20 . . . Allied During Kill 10 | . . . 10 . . . . Successful Hack 30 | . 21 . 6 3 . . . Select Force Hacks 30 | . . . 30 . . . . Disable Machine 120 | . . . 15 105 . . . Destroy Structure 72 | . 7 7 3 52 . 3 . Lose Combat Pursuer 285 | . 75 15 15 . . 150 30 Influence Decreases 1765 | 20 392 409 310 185 191 106 152 Entered New Map 393 | . 4 121 48 64 125 . 31 Time Decay 1208 | 20 328 278 222 121 36 92 111 Lost Part 124 | . 60 10 . . 30 14 10 Lost Ally 40 | . . . 40 . . . . Squads Dispatched 17 | . 6 1 4 1 . 5 . Investigation 12 | . 4 1 3 1 . 3 . Extermination 1 | . . . . . . 1 . Reinforcement 3 | . 2 . . . . 1 . Assault . | . . . . . . . . Garrison 1 | . . . 1 . . . . Intercept . | . . . . . . . . Searches Triggered . | . . . . . . . . Construction Impeded . | . . . . . . . . Haulers Reinforced . | . . . . . . . . Active Scanning Responses . | . . . . . . . . Cargo Convoy Interrupts . | . . . . . . . . Stealth | -11 -10 -9 -8 -7 -7 -7 -7 --------- Run | Yrd Mat Mat Mat Fac Was Fac Low Distress Signals 6 | . 3 2 1 . . . . Communications Jammed . | . . . . . . . . Distress Signals . | . . . . . . . . Times Spotted 81 | . 27 11 12 4 6 16 5 Peak Tracking Total 9 | . 7 3 5 3 6 9 3 Tactical Retreats 12 | . 5 1 1 . 1 3 1 Traps | -11 -10 -9 -8 -7 -7 -7 -7 ------- Run | Yrd Mat Mat Mat Fac Was Fac Low Traps Triggered 3 | . . . . 2 . 1 . Indirectly . | . . . . . . . . Trap Hack Attempts . | . . . . . . . . Triggered . | . . . . . . . . Disarmed . | . . . . . . . . Reprogrammed . | . . . . . . . . Reused . | . . . . . . . . Traps Extracted . | . . . . . . . . Installed . | . . . . . . . . Triggered . | . . . . . . . . Machines | -11 -10 -9 -8 -7 -7 -7 -7 ---------- Run | Yrd Mat Mat Mat Fac Was Fac Low Machines Disabled 8 | . . . 1 7 . . . Max in Single Turn 3 | . . . . 3 . . . Machines Repaired . | . . . . . . . . Machines Dismantled . | . . . . . . . . Machines Sabotaged . | . . . . . . . . Overloaded Fab Kills . | . . . . . . . . Hacking | -11 -10 -9 -8 -7 -7 -7 -7 --------- Run | Yrd Mat Mat Mat Fac Was Fac Low Machines Accessed 15 | . 7 1 3 2 . 2 . Terminals 9 | . 6 1 . . . 2 . Fabricators 1 | . . . . 1 . . . Repair Stations 1 | . . . 1 . . . . Recycling Units 1 | . 1 . . . . . . Scanalyzers 1 | . . . 1 . . . . Garrison Access 2 | . . . 1 1 . . . Total Hacks 54 | . 21 3 18 7 . 5 . Successful 27 | . 10 . 14 3 . . . Failed 27 | . 11 3 4 4 . 5 . Catastrophic 3 | . . . . . . 3 . Database Lockouts . | . . . . . . . . Manual 33 | . 21 3 3 1 . 5 . Terminals 28 | . 20 3 . . . 5 . Fabricators 6 | . . . . 6 . . . Repair Stations 6 | . . . 6 . . . . Recycling Units 1 | . 1 . . . . . . Scanalyzers 10 | . . . 10 . . . . Garrison Access 3 | . . . 2 1 . . . Terminal Hacks 2 | . 2 . . . . . . Terminal Index 1 | . 1 . . . . . . Zone Layout 1 | . 1 . . . . . . Fabricator Hacks 3 | . . . . 3 . . . Network Status 1 | . . . . 1 . . . Load Schematic 1 | . . . . 1 . . . Build 1 | . . . . 1 . . . Repair Station Hacks 4 | . . . 4 . . . . Scan Component 2 | . . . 2 . . . . Repair 2 | . . . 2 . . . . Recycling Unit Hacks . | . . . . . . . . Scanalyzer 8 | . . . 8 . . . . Insert Component 3 | . . . 3 . . . . Analyze 4 | . . . 4 . . . . Retrieve Study 1 | . . . 1 . . . . Garrison Access Hacks . | . . . . . . . . Unauthorized Hacks 10 | . 8 . 2 . . . . Terminals 7 | . 7 . . . . . . Track 1 | . 1 . . . . . . Botnet 6 | . 6 . . . . . . Fabricators . | . . . . . . . . Repair Stations . | . . . . . . . . Recycling Units 1 | . 1 . . . . . . Recyclers 1 | . 1 . . . . . . Scanalyzers 1 | . . . 1 . . . . Extract 1 | . . . 1 . . . . Garrison Access 1 | . . . 1 . . . . Reprogram 1 | . . . 1 . . . . Data Cores Recovered . | . . . . . . . . Used . | . . . . . . . . Hacking Detections 12 | . 6 1 1 2 . 2 . Full Trace Events 9 | . 4 1 1 1 . 2 . Feedback Events . | . . . . . . . . Feedback Blocked . | . . . . . . . . Robot Schematics Acquired . | . . . . . . . . Robots Built . | . . . . . . . . Authchips . | . . . . . . . . Time . | . . . . . . . . Total Robot Build Rating . | . . . . . . . . Part Schematics Acquired 4 | . . . 4 . . . . Parts Built 1 | . . . . 1 . . . Authchips . | . . . . . . . . Time 73 | . . . . 73 . . . Total Part Build Rating 3 | . . . . 3 . . . Part Studies Acquired 1 | . . . 1 . . . . Parts Repaired 2 | . . . 2 . . . . Time 79 | . . . 79 . . . . Parts Recycled . | . . . . . . . . Recycled Matter . | . . . . . . . . Retrieved Matter . | . . . . . . . . Retrieved Components . | . . . . . . . . Parts Scanalyzed 3 | . . . 3 . . . . Part Schematics Acquired 3 | . . . 3 . . . . Parts Damaged 1 | . . . 1 . . . . Bothacking | -11 -10 -9 -8 -7 -7 -7 -7 ------------ Run | Yrd Mat Mat Mat Fac Was Fac Low Used RIF Installer . | . . . . . . . . Robots Hacked . | . . . . . . . . Non-combat . | . . . . . . . . Combat . | . . . . . . . . Robot Hacks Applied . | . . . . . . . . Relay Couplers Released . | . . . . . . . . Fabnet Peak Effective % . | . . . . . . . . Robots Rewired . | . . . . . . . . Allies Hacked . | . . . . . . . . Hacks Repelled . | . . . . . . . . Allies | -11 -10 -9 -8 -7 -7 -7 -7 -------- Run | Yrd Mat Mat Mat Fac Was Fac Low Total Allies 2 | . . . 2 . . . . Largest Group 2 | . . . 2 . . . . Highest-Rated Group 32 | . . . 32 . . . . Highest-Rated Ally 16 | . . . 16 . . . . Total Orders . | . . . . . . . . Ally Attacks 17 | . . . 17 . . . . Total Damage 124 | . . . 124 . . . . Kills 4 | . . . 4 . . . . Allies Corrupted . | . . . . . . . . Allies Melted . | . . . . . . . . Intel | -11 -10 -9 -8 -7 -7 -7 -7 ------- Run | Yrd Mat Mat Mat Fac Was Fac Low Active Infowar (turns) 1556 | 38 737 . . . . 593 188 Structural 781 | . . . . . . 593 188 Seismic 775 | 38 737 . . . . . . Robot Analysis Total . | . . . . . . . . Derelict Logs Recovered . | . . . . . . . . Drone Launches . | . . . . . . . . Drone Recoveries . | . . . . . . . . Exploration | -11 -10 -9 -8 -7 -7 -7 -7 ------------- Run | Yrd Mat Mat Mat Fac Was Fac Low Turns Passed 3410 | 114 822 604 470 260 121 644 375 Spaces Moved 1879 | 51 368 313 233 156 151 412 195 Core 210 | 1 1 . . . 139 69 . Treads 247 | 50 197 . . . . . . Legs 884 | . 170 313 233 156 12 . . Wheels 538 | . . . . . . 343 195 Hover . | . . . . . . . . Flight . | . . . . . . . . Fastest Speed 50 | 50 120 120 120 120 50 50 80 Average Speed 108 | 157 147 124 120 120 55 74 85 Slowest Speed 300 | 160 300 190 120 120 120 80 100 Overloaded Moves . | . . . . . . . . Propulsion Burnouts . | . . . . . . . . Robots Hopped . | . . . . . . . . Potential Cave-ins . | . . . . . . . . Cave-ins Triggered 1 | . . . . . . . 1 Exploration Rate (%) 30 | 5 71 20 25 3 83 12 23 Regions Visited 7 Branch Regions 1 Pre-discovered Areas . | . . . . . . . . Known Exits Taken . | . . . . . . . . Unknown Exits Taken 5 | 1 1 1 1 . . 1 . Scrap Searched 2 | . . . . . . . 2 Spaces Dug 8 | . . . . 1 . 3 4 Terrain Destroyed 81 | . 7 7 . 60 . 3 4 Melee 8 | . . . . 1 . 3 4 Projectile . | . . . . . . . . AOE 73 | . 7 7 . 59 . . . Terrain Rammed . | . . . . . . . . Walls Destroyed . | . . . . . . . . Machines Disabled . | . . . . . . . . Actions | -11 -10 -9 -8 -7 -7 -7 -7 --------- Run | Yrd Mat Mat Mat Fac Was Fac Low Total 2906 | 67 512 451 392 208 176 721 379 Wait 715 | . 35 68 114 33 16 284 165 Move 1873 | 50 367 312 232 156 150 411 195 Hop . | . . . . . . . . Pick Up 31 | 2 7 8 9 2 1 2 . Fast Attach 38 | 7 8 5 1 2 1 10 4 Attach 12 | . 1 2 8 . . 1 . Detach 2 | . . 1 1 . . . . Swap 14 | . 4 4 3 3 . . . Drop 33 | . 8 8 9 3 2 1 2 Fire 161 | 8 82 43 15 7 6 . . Melee 27 | . . . . 2 . 12 13 Ram . | . . . . . . . . Kick . | . . . . . . . . Crush . | . . . . . . . . Escape Stasis . | . . . . . . . . Rewire . | . . . . . . . . Trap . | . . . . . . . . Miscellaneous . | . . . . . . . . Route ------- -11/Scrapyard -10/Materials (discovered 4 exits: *Mat x3 / [*Min]) -9/Materials -8/Materials -7/Factory -7/Waste -7/Factory -7/Lower Caves History --------- Turn | Location | Event 45 | -11/Scrapyard | Discovered new exit (range 16) 115 | -11/Scrapyard | Entered Materials 240 | -10/Materials | Discovered new exit (range 16) 306 | -10/Materials | Build established: Mutant 660 | -10/Materials | Discovered new exit (range 7) 756 | -10/Materials | Core integrity fell below 50% 791 | -10/Materials | Lost 3 parts (2n1w) 795 | -10/Materials | Discovered new exit (range 6) 876 | -10/Materials | Discovered new exit (range 14) 899 | -10/Materials | Build established: Scavenger-Mutant 903 | -10/Materials | Core integrity fell below 20% 937 | -10/Materials | Entered another Materials area 937 | -9/Materials | Evolved 2 slots: Utility x1, Weapon x1 1478 | -9/Materials | Discovered new exit (range 8) 1541 | -9/Materials | Entered another Materials area 1541 | -8/Materials | Evolved 2 slots: Propulsion x1, Weapon x1 1639 | -8/Materials | Garrison activated, responded to threat 1744 | -8/Materials | Build established: Scavenger-Tank 1901 | -8/Materials | Discovered new exit (range 15) 1969 | -8/Materials | Repaired Broken Axe 1996 | -8/Materials | Repaired Lgt. Armor Plating 2011 | -8/Materials | Entered Factory 2011 | -7/Factory | Evolved 2 slots: Propulsion x1, Utility x1 2213 | -7/Factory | Fabricated Hacking Suite? 2271 | -7/Factory | Sucked down chute 2271 | -7/Factory | Entered Waste 2285 | -7/Waste | Spotted C-40 Crusher 2292 | -7/Waste | Spotted C-40 Crusher 2298 | -7/Waste | Crushed by Compactor (1 part destroyed, 2 dropped) 2301 | -7/Waste | Crushed by Compactor (1 part destroyed, 1 dropped) 2304 | -7/Waste | Crushed by Compactor (1 part destroyed, 2 dropped) 2306 | -7/Waste | Released all parts (3) 2335 | -7/Waste | Lost 3 parts (1n1u1w) 2335 | -7/Waste | Spotted C-40 Crusher 2356 | -7/Waste | Spotted C-40 Crusher 2361 | -7/Waste | Spotted C-40 Crusher 2383 | -7/Waste | Spotted C-40 Crusher 2387 | -7/Waste | Discovered new exit (range 12) 2392 | -7/Waste | Entered Factory 2580 | -7/Factory | Noticed a derelict Sapper rigging charges 2726 | -7/Factory | Build established: Scavenger-Mutant 3026 | -7/Factory | Discovered new exit (range 13) 3036 | -7/Factory | Entered Lower Caves 3345 | -7/Lower Caves | Build established: Scavenger-Gladiator 3358 | -7/Lower Caves | Crushed by falling debris 3358 | -7/Lower Caves | System corruption reached 10% 3381 | -7/Lower Caves | Core integrity fell below 50% 3389 | -7/Lower Caves | Lost 3 parts (2n1w) 3411 | -7/Lower Caves | Self-destructed Last Messages --------------- 03358_ Wheel destroyed. 03358_ System corrupted by crushing effect (+2). 03358_ Ripper destroyed. 03358_ System corrupted by crushing effect (+3). 03358_ Wheel destroyed. 03358_ System corrupted by crushing effect (+5). 03373_ 6 #|%DF TA0ORZS